Cogmind - Beta 15 @@@ ROGUE MODE // 2025.06.04 @ 14:54:32 Player: Mas5akr Result: Destroyed by D-53 Grenadier with Mini Grenade Launcher Performance ------------- Evolutions (0) 0 Regions Visited (2) 400 Robots Destroyed (29) 145 Value Destroyed (467) 467 Prototype IDs (0) 0 Alien Tech Used (0) 0 Bonus (0) 0 TOTAL SCORE: 1012 Bonus ------- None Cogmind --------- Core Integrity 0/250 Matter 89/300 Energy 98/100 System Corruption 0% Temperature Cool (1) Movement Walking (120) Location -10/Mines Parts ------- > --- POWER (1) -------- (None) > --- PROPULSION (2) --- Improved Aluminum Leg > --- UTILITY (2) ------ Small Storage Unit Visual Processing Unit > --- WEAPON (2) ------- Light Cannon > --- INVENTORY (8) ---- Improved Ion Engine Improved Aluminum Leg Hacking Suite Light Cannon Light Cannon Peak State ------------ > --- POWER ------------ Improved Ion Engine > --- PROPULSION ------- Improved Aluminum Leg Improved Aluminum Leg > --- UTILITY ---------- Small Storage Unit Visual Processing Unit > --- WEAPON ----------- Light Cannon Rocket Launcher > --- INVENTORY -------- Improved Ion Engine Improved Aluminum Leg Hacking Suite Light Cannon Light Cannon Rocket Launcher [Rating: 13] Favorites ----------- Power Improved Ion Engine Engine Improved Ion Engine Propulsion Improved Aluminum Leg Treads Light Treads Leg Improved Aluminum Leg Utility Small Storage Unit Storage Small Storage Unit Processor Visual Processing Unit Weapon Light Cannon Energy Gun EM Pulse Gun Ballistic Cannon Light Cannon Launcher Rocket Launcher Build | -11 -10 -10 ------- Run | Yrd Mat Min Slots Evolved . | . . . Power . | . . . Propulsion . | . . . Utility . | . . . Weapon . | . . . Parts Attached 18 | 6 10 2 Power 2 | 1 1 . Engine 2 | 1 1 . Core . | . . . Reactor . | . . . Propulsion 5 | 2 3 . Treads 2 | 2 . . Leg 3 | . 3 . Wheel . | . . . Hover . | . . . Flight . | . . . Utility 2 | 1 1 . Device . | . . . Storage 1 | 1 . . Processor 1 | . 1 . Hackware . | . . . Protection . | . . . Artifact . | . . . Weapon 9 | 2 5 2 Energy Gun 2 | 2 . . Energy Cannon . | . . . Ballistic Gun . | . . . Ballistic Cannon 5 | . 5 . Launcher 2 | . . 2 Special Weapon . | . . . Impact Weapon . | . . . Slashing Weapon . | . . . Piercing Weapon . | . . . Special Melee Weapon . | . . . Unidentified Prototypes . | . . . Parts Lost 5 | . 1 4 Power 1 | . . 1 Propulsion 2 | . 1 1 Utility . | . . . Weapon 2 | . . 2 Highest Loss Streak 4 | . 1 4 To Critical Strikes . | . . . Average Backups 5 | 2 5 5 Power 1 | . 1 1 Propulsion 1 | . 1 1 Utility . | . . 1 Weapon 2 | . 2 2 Tool/Special . | . . . Unused Backups 7 | . 3 4 Power 3 | . 2 1 Propulsion 1 | . . 1 Utility 1 | . . 1 Weapon 2 | . 1 1 Tool/Special . | . . . Average Slot Usage (%) 86 | . 86 90 Engine 13 | . 14 11 Treads 2 | . 2 . Leg 25 | . 25 23 Storage 14 | . 14 14 Processor 3 | . 1 14 Energy Gun 6 | . 7 . Ballistic Cannon 19 | . 19 14 Launcher 1 | . . 11 Peak Build Rating 13 | 6 12 13 Average Rating 9 | 3 9 11 On Entrance 6 | . 6 12 Naked Turns . | . . . Heaviest Build 19 | 14 18 19 Greatest Support 40 | 40 40 26 Greatest Overweight (x) 1 | 1 . 1 Average Overweight (x) . | . . . Largest Inventory Capacity 8 | 8 8 8 Average Capacity 7 | 6 8 8 Most Carried 8 | 5 8 6 Average Carried 5 | 2 6 5 Final Capacity 8 | 8 8 8 Final Carried 6 | 2 6 5 Class Distribution -------------------- 100% | Mutant Dominant Class ---------------- Mutant | -10/Materials Mutant | -10/Mines Resources | -11 -10 -10 ----------- Run | Yrd Mat Min Matter Collected 623 | 171 435 17 Remotely . | . . . Salvage Created 488 | . 424 64 Parts 44 | . 31 13 Haulers Intercepted 2 | . 2 . Recyclers Shooed . | . . . Parts Field Recycled . | . . . Retrieved Matter . | . . . Parts Self-Destructed . | . . . Prevented . | . . . Kills | -11 -10 -10 ------- Run | Yrd Mat Min Combat Hostiles Destroyed 32 | . 15 17 Guns 2 | . 2 . Cannons 15 | . 12 3 AOE 15 | . 1 14 Classes Destroyed 7 | . 5 2 Worker 2 | . . 2 Hauler 2 | . 2 . Operator 1 | . 1 . Watcher 3 | . 3 . Swarmer 15 | . 9 6 Grunt 6 | . 6 . Assembled 11 | . . 11 Best Kill Streak 13 | . 3 13 Combat Bots Only 11 | . 3 11 Max Kills in Single Turn 5 | . 1 5 Gunslinging . | . . . Exploded 5 | . 1 5 Melee . | . . . Uniques/NPCs Destroyed . | . . . Combat | -11 -10 -10 -------- Run | Yrd Mat Min Hostile Shots Fired 106 | . 58 48 Missed 35 | . 17 18 Hits 71 | . 41 30 Melee 2 | . . 2 Projectile 69 | . 41 28 AOE 2 | . . 2 Critical Strikes 1 | . 1 . Damage Taken 1034 | . 402 632 Core 272 | . 44 228 Absorbed by Shields . | . . . Core Remaining (%) 100 | 100 . . Volleys Fired 54 | . 43 11 Largest 2 | . 2 2 Hottest 90 | . 90 63 Shots Fired 104 | . 86 18 Gun 10 | . 10 . Cannon 87 | . 76 11 Launcher 7 | . . 7 Special . | . . . Kinetic 87 | . 76 11 Thermal 5 | . 5 . Explosive 7 | . . 7 Electromagnetic 5 | . 5 . Robot Hit Streak 8 | . 8 3 Robot Miss Streak 3 | . 3 3 Penetration Max . | . . . Secondary Targets . | . . . Shots Hit Robots 56 | . 49 7 Core Hits 51 | . 24 27 Critical Kills . | . . . Critical Parts Destroyed . | . . . Critical Strikes 2 | . 2 . Blast 2 | . 2 . Melee Attacks . | . . . Impact . | . . . Slashing . | . . . Piercing . | . . . Sneak Attacks . | . . . Combat Hostiles . | . . . Follow-up Attacks . | . . . Damage Inflicted 1931 | . 883 1048 Guns 57 | . 57 . Cannons 874 | . 777 97 Explosions 997 | . 46 951 Melee . | . . . Ramming 3 | . 3 . Kinetic 874 | . 777 97 Thermal 83 | . 83 . Explosive 951 | . . 951 Electromagnetic 20 | . 20 . Impact . | . . . Slashing . | . . . Piercing . | . . . Highest Corruption . | . . . Average Corruption . | . . . Corruption Purged . | . . . Corruption Blocked . | . . . Overload Shots . | . . . Overflow Damage 27 | . 7 20 Projectiles 7 | . 7 . Explosions 20 | . . 20 Melee . | . . . Knockbacks 12 | . 11 1 Impact . | . . . Kinetic 11 | . 10 1 Secondary 1 | . 1 . Self-Inflicted Damage 140 | . . 140 Shots 4 | . . 4 Rammed . | . . . Targets Rammed 2 | . 2 . Kicked 2 | . 2 . Crushed . | . . . Highest Temperature 132 | . 132 32 Average Temperature 18 | . 19 12 Received Heat Transfer 166 | . 126 40 Siege Activations . | . . . Martial Activations . | . . . Shielding Activations . | . . . Robots Disrupted . | . . . Combat Hostiles . | . . . Robots Corrupted . | . . . Combat Hostiles . | . . . Parts Fried . | . . . Impact Corruptions . | . . . Robots Melted . | . . . Combat Hostiles . | . . . Parts Melted 1 | . 1 . Heat Transferred 161 | . 161 . Parts Sabotaged . | . . . Parts Stolen . | . . . Parts Stripped . | . . . Power Chain Reactions 1 | . 1 . Alert | -11 -10 -10 ------- Run | Yrd Mat Min Maximum Alert Level 1 | . . 1 Low Security (%) 93 | 100 100 33 Level 1 6 | . . 66 Level 2 . | . . . Level 3 . | . . . Level 4 . | . . . Level 5 . | . . . High Security . | . . . Max Security . | . . . Peak Influence 221 | . 180 221 Initial 59 | . . 59 Average 79 | . 71 195 Influence Increases 671 | . 476 195 Destroy 0b10 Robot/C 420 | . 300 120 Destroy 0b10 Robot/NC 40 | . 30 10 Destroy Leader 90 | . 70 20 Successful Hack 14 | . 14 . Disable Machine 45 | . 45 . Destroy Structure 47 | . 2 45 Lose Combat Pursuer 15 | . 15 . Influence Decreases 507 | . 323 184 Entered New Map 94 | . . 94 Time Decay 363 | . 313 50 Lost Part 50 | . 10 40 Squads Dispatched 2 | . 2 . Investigation 1 | . 1 . Extermination . | . . . Reinforcement 1 | . 1 . Assault . | . . . Garrison . | . . . Intercept . | . . . Searches Triggered . | . . . Construction Impeded . | . . . Haulers Reinforced . | . . . Active Scanning Responses . | . . . Cargo Convoy Interrupts . | . . . Stealth | -11 -10 -10 --------- Run | Yrd Mat Min Distress Signals 2 | . 2 . Communications Jammed . | . . . Distress Signals . | . . . Times Spotted 48 | . 21 27 Peak Tracking Total 14 | . 4 14 Tactical Retreats 3 | . 1 2 Traps | -11 -10 -10 ------- Run | Yrd Mat Min Traps Triggered 5 | . 5 . Indirectly . | . . . Trap Hack Attempts . | . . . Triggered . | . . . Disarmed . | . . . Reprogrammed . | . . . Reused . | . . . Traps Extracted . | . . . Installed . | . . . Triggered . | . . . Machines | -11 -10 -10 ---------- Run | Yrd Mat Min Machines Disabled 3 | . 3 . Max in Single Turn 2 | . 2 . Machines Repaired . | . . . Machines Dismantled . | . . . Machines Sabotaged . | . . . Overloaded Fab Kills . | . . . Hacking | -11 -10 -10 --------- Run | Yrd Mat Min Machines Accessed 6 | . 6 . Terminals 6 | . 6 . Fabricators . | . . . Repair Stations . | . . . Recycling Units . | . . . Scanalyzers . | . . . Garrison Access . | . . . Total Hacks 15 | . 15 . Successful 2 | . 2 . Failed 13 | . 13 . Catastrophic 3 | . 3 . Database Lockouts . | . . . Manual 15 | . 15 . Terminals 15 | . 15 . Fabricators . | . . . Repair Stations . | . . . Recycling Units . | . . . Scanalyzers . | . . . Garrison Access . | . . . Terminal Hacks 2 | . 2 . Branch Access Points 1 | . 1 . Terminal Index 1 | . 1 . Fabricator Hacks . | . . . Repair Station Hacks . | . . . Recycling Unit Hacks . | . . . Scanalyzer . | . . . Garrison Access Hacks . | . . . Unauthorized Hacks . | . . . Terminals . | . . . Fabricators . | . . . Repair Stations . | . . . Recycling Units . | . . . Scanalyzers . | . . . Garrison Access . | . . . Data Cores Recovered . | . . . Used . | . . . Hacking Detections 5 | . 5 . Full Trace Events . | . . . Feedback Events . | . . . Feedback Blocked . | . . . Robot Schematics Acquired . | . . . Robots Built . | . . . Authchips . | . . . Time . | . . . Total Robot Build Rating . | . . . Part Schematics Acquired . | . . . Parts Built . | . . . Authchips . | . . . Time . | . . . Total Part Build Rating . | . . . Parts Repaired . | . . . Time . | . . . Parts Recycled . | . . . Recycled Matter . | . . . Retrieved Matter . | . . . Retrieved Components . | . . . Parts Scanalyzed . | . . . Part Schematics Acquired . | . . . Parts Damaged . | . . . Bothacking | -11 -10 -10 ------------ Run | Yrd Mat Min Used RIF Installer . | . . . Robots Hacked . | . . . Non-combat . | . . . Combat . | . . . Robot Hacks Applied . | . . . Relay Couplers Released . | . . . Fabnet Peak Effective % . | . . . Robots Rewired . | . . . Allies Hacked . | . . . Hacks Repelled . | . . . Allies | -11 -10 -10 -------- Run | Yrd Mat Min Total Allies . | . . . Largest Group . | . . . Highest-Rated Group . | . . . Highest-Rated Ally . | . . . Total Orders . | . . . Ally Attacks . | . . . Total Damage . | . . . Kills . | . . . Allies Corrupted . | . . . Allies Melted . | . . . Intel | -11 -10 -10 ------- Run | Yrd Mat Min Active Infowar (turns) 238 | . 130 108 Optics 238 | . 130 108 Robot Analysis Total . | . . . Derelict Logs Recovered . | . . . Drone Launches . | . . . Drone Recoveries . | . . . Exploration | -11 -10 -10 ------------- Run | Yrd Mat Min Turns Passed 1119 | 62 949 108 Spaces Moved 726 | 52 614 60 Core 32 | 32 . . Treads 59 | 20 39 . Legs 635 | . 575 60 Wheels . | . . . Hover . | . . . Flight . | . . . Fastest Speed 50 | 50 120 120 Average Speed 121 | 96 122 128 Slowest Speed 190 | 160 160 190 Overloaded Moves . | . . . Propulsion Burnouts . | . . . Robots Hopped . | . . . Potential Cave-ins . | . . . Cave-ins Triggered . | . . . Exploration Rate (%) 36 | 3 84 21 Regions Visited 2 Branch Regions 1 Pre-discovered Areas . | . . . Known Exits Taken 1 | . 1 . Unknown Exits Taken 1 | 1 . . Scrap Searched . | . . . Spaces Dug . | . . . Terrain Destroyed 53 | . . 53 Melee . | . . . Projectile . | . . . AOE 53 | . . 53 Terrain Rammed . | . . . Walls Destroyed . | . . . Machines Disabled . | . . . Actions | -11 -10 -10 --------- Run | Yrd Mat Min Total 862 | 63 726 73 Wait 22 | . 22 . Move 724 | 51 613 60 Hop . | . . . Pick Up 27 | 6 21 . Fast Attach 4 | 2 2 . Attach 16 | 4 11 1 Detach . | . . . Swap 4 | . 3 1 Drop 9 | . 9 . Fire 54 | . 43 11 Melee . | . . . Ram . | . . . Kick 2 | . 2 . Crush . | . . . Escape Stasis . | . . . Rewire . | . . . Trap . | . . . Miscellaneous . | . . . Route ------- -11/Scrapyard -10/Materials (discovered 5 exits: [*Mat x3] / *Min / [*Sub]) -10/Mines History --------- Turn | Location | Event 2 | -11/Scrapyard | Met Revision 17 3 | -11/Scrapyard | Discovered new exit (range 15) 63 | -11/Scrapyard | Entered Materials 212 | -10/Materials | Discovered new exit (range 7) 304 | -10/Materials | Build established: Mutant 507 | -10/Materials | Discovered new exit (range 16) 791 | -10/Materials | Discovered new exit (range 5) 935 | -10/Materials | Discovered new exit (range 18) 959 | -10/Materials | Identified exit to Mines 1012 | -10/Materials | Entered Mines 1044 | -10/Mines | Assembled infested the area 1072 | -10/Mines | Core integrity fell below 50% 1098 | -10/Mines | Core integrity fell below 20% 1108 | -10/Mines | Destroyed 11 combat bots 1120 | -10/Mines | Destroyed by D-53 Grenadier with Mini Grenade Launcher Last Messages --------------- as-80763 destroyed. Rocket Launcher destroyed. as-39072 destroyed. as-83614 destroyed. as-58860 destroyed. as-29952 destroyed. as-94634 destroyed. The unstable cave ceiling collapses. as-24787 destroyed. as-47802 destroyed. Imp. Aluminum Leg destroyed. D-53 Grenadier unfolds itself. as-17575 destroyed. The unstable cave ceiling collapses. as-14824 destroyed. as-48237 destroyed. as-46283 destroyed. as-19494 destroyed. Rocket Launcher destroyed. Imp. Ion Engine destroyed. Map ----- +----------------------------------------------------+ | ????????????????????##?????????????????????? | | ????????????????????# ??????????###????????? | | ????????????????????# #????????## ##???????? | | ????????????????????# #????????# #####???? | | ????????????????????# #?#####??# ????? | | ?????????????? ???### ### #### #??????? | | ?????????????# ### # ## #??????? | | ?????????????# = " ##?????? | | ?????????????# " ##????? | | ?????????????# ####### [ ###?#? | | ?????????????# #????### # ## | | ?????????????# ##???# | | ?????????????## #???# [ ##### | | ??????????????# ##??## # #### | | ??????????????# ##?# | | ??????????????# #### ### #### | | ??????????????### ???## ## ##??? | | ????????????????### ????## ### [ * #???? | | ??????????????????# #?????# ## #???? | | ??????????????????# ####### ### * #???? | | ??????????????????# ## = = #???? | | ??????????????????######### ##### = ###???? | | ????????????????????????### #???## #?????? | | ?????##?????????????????# #????# #?????? | | ???# ########## #????# #?????? | | ??# @ d ###????# ?????? | | ???? """ #############??????### #????? | | ????????????????????????????????????? #????? | | ????????????????????????????????????? #????? | | ????????????????????????????????????? #????? | | ????????????????????????????????????? ????? | | ?????????????????????????????????????##????? | | ???????????????????????????????????????????? | | ???????????????????????????????????????????? | | ???????????????????????????????????????????? | | ???????????????????????????????????????????? | | ???????????????????????????????????????????? | | ???????????????????????????????????????????? | | ???????????????????????????????????????????? | | ???????????????????????????????????????????? | | ???????????????????????????????????????????? | | ???????????????????????????????????????????? | | ???????????????????????????????????????????? | | ???????????????????????????????????????????? | | ???????????????????????????????????????????? | | ???????????????????????????????????????????? | | ???????????????????????????????????????????? | | ???????????????????????????????????????????? | | ???????????????????????????????????????????? | | ???????????????????????????????????????????? | +----------------------------------------------------+ Best States ------------- Heat Dissipation 25 Energy Generation 12 Energy Capacity 265 Matter Stores 211 Matter Capacity 300 Sight Range 18 Terrain Scan Density 10 Evasion (%) 55 Recoil Reduction 2 Item Schematics ----------------- None Robot Schematics ------------------ None Fabricated ------------ Nothing Repaired ---------- Nothing Alien Tech Used ----------------- None Achievements -------------- None Challenges ------------ None Game ------ Seed JammingSmartTearclaws Manual? 0 Play Time 00:09:55 Cumulative 35.0 hours Start 2025.06.04 @ 14:45:57 End 2025.06.04 @ 14:54:32 Sessions 1 Manual Loads 0 Difficulty Rogue Special Mode None Game No. 32 Rogue 32 Adventurer 0 Explorer 0 Win Type - Total 0 Types 0/0/0/0/0/0/0/0/0/0 Lore% 24 Gallery% 31 Achievement% 37 Wizard Run 0 Options --------- Layout 1 ASCII 0 Keyboard 0 Movement Mouse Keybinds 0 Fullscreen 1 Font 24/Smallcaps Map View 50x35 Zoom Use 0% Tactical HUD 0 Map Filters NONE Filters NONE Steam 1 RUN: 2be77079-9c97-4c7a-9731-f9385dc184c1